bitfinex/quotes_BTCUSD_20240921
["timestamp","ask_amount","ask_price","bid_price","bid_amount"]
[1726930917194,0.78208629,63345.0,63344.0,0.001652]
[1726930917440,0.85303984,63345.0,63344.0,0.001652]
[1726930917654,0.85403984,63345.0,63344.0,0.001652]
[1726930918158,0.97478361,63345.0,63344.0,0.001652]
[1726930918621,1.21956106,63345.0,63344.0,0.001652]
[1726930919345,1.29051461,63345.0,63344.0,0.001652]
[1726930919563,1.21956106,63345.0,63344.0,0.001652]
[1726930920254,0.91838636,63345.0,63344.0,0.001652]
[1726930920522,0.96137891,63345.0,63344.0,0.001652]
[1726930920748,0.96130116,63345.0,63344.0,0.02082193]
[1726930921010,0.98913776,63345.0,63344.0,0.001652]
[1726930922143,1.30486876,63345.0,63344.0,0.001652]
[1726930922360,0.98913776,63345.0,63344.0,0.001652]
[1726930923856,0.91818421,63345.0,63344.0,0.001652]
[1726930924102,0.87294974,63345.0,63344.0,0.001652]
[1726930924313,0.91820888,63345.0,63344.0,0.001652]
[1726930925185,1.23393988,63345.0,63344.0,0.001652]
[1726930925408,0.91820888,63345.0,63344.0,0.001652]
[1726930925839,1.23393988,63345.0,63344.0,0.001652]
[1726930926999,0.91820888,63345.0,63344.0,0.001652]
[1726930927817,1.98297905,63345.0,63344.0,0.001652]
[1726930928089,2.03031089,63345.0,63344.0,0.001652]
[1726930928346,1.88835646,63345.0,63344.0,0.001652]
[1726930928589,2.03018472,63345.0,63344.0,0.001652]
[1726930929023,2.03018472,63345.0,63337.0,0.001652]
[1726930929024,1.86709914,63345.0,63337.0,0.001652]
[1726930929239,1.10585877,63338.0,63337.0,0.001652]
[1726930929535,1.31417158,63338.0,63337.0,0.001652]
[1726930930203,1.43233185,63338.0,63337.0,0.002652]
[1726930930448,1.31417158,63338.0,63337.0,0.001652]
[1726930930666,1.40868033,63338.0,63337.0,0.001652]
[1726930930885,1.41267993,63338.0,63337.0,0.001652]
[1726930931094,1.40028012,63338.0,63337.0,0.001652]
[1726930931302,1.41751831,63338.0,63337.0,0.001652]
[1726930932565,1.73328431,63338.0,63337.0,0.001652]
[1726930932780,1.41751831,63338.0,63337.0,0.001652]
[1726930932992,1.73328431,63338.0,63337.0,0.001652]
[1726930934370,1.74815181,63338.0,63337.0,0.001652]
[1726930934656,1.72448561,63338.0,63337.0,0.001652]
[1726930935390,1.65364359,63338.0,63337.0,0.001652]
[1726930936094,1.72448286,63338.0,63337.0,0.001652]
[1726930936296,1.65364359,63338.0,63337.0,0.001652]
[1726930936742,1.65364359,63338.0,63328.0,0.23847852]
[1726930936743,0.157905,63329.0,63328.0,0.001652]
[1726930936993,1.10277137,63329.0,63328.0,0.001652]
[1726930937205,1.37135342,63329.0,63328.0,0.001652]
[1726930937540,1.41857267,63329.0,63328.0,0.001652]
[1726930938346,1.58162634,63329.0,63328.0,0.001652]
[1726930939619,1.54940709,63329.0,63328.0,0.003652]
[1726930939828,1.54940709,63329.0,63328.0,0.002652]
[1726930940244,1.54940709,63329.0,63328.0,0.003652]
[1726930940245,1.53995734,63329.0,63328.0,0.003652]
[1726930940444,1.55734603,63329.0,63328.0,0.003652]
[1726930940799,1.60455364,63329.0,63328.0,0.003652]
[1726930941025,1.55734603,63329.0,63328.0,0.003652]
[1726930941230,1.51213544,63329.0,63328.0,0.003652]
[1726930941458,1.55730605,63329.0,63328.0,0.003652]
[1726930941608,1.62812403,63329.0,63328.0,0.003652]
[1726930942413,1.55730605,63329.0,63328.0,0.003652]
[1726930943106,1.57243833,63329.0,63328.0,0.003652]
[1726930944812,1.54460846,63329.0,63328.0,0.003652]
[1726930945074,1.57235365,63329.0,63328.0,0.003652]
[1726930945329,1.73543923,63329.0,63328.0,0.003652]
[1726930945560,1.61955792,63329.0,63328.0,0.003652]
[1726930946758,0.34112321,63329.0,63328.0,0.003652]
[1726930946977,0.52446119,63329.0,63328.0,0.102352]
[1726930947188,0.15070714,63329.0,63328.0,0.102352]
[1726930947401,0.1680241,63329.0,63328.0,0.102352]
[1726930947621,0.3259291,63329.0,63328.0,0.11329456]
[1726930947832,0.3169291,63329.0,63328.0,0.11229456]
[1726930948038,0.1450241,63329.0,63328.0,0.11129456]
[1726930948466,0.1460241,63329.0,63328.0,0.11129456]
[1726930948704,0.2039291,63329.0,63328.0,0.11129456]
[1726930949135,0.3089291,63329.0,63328.0,0.11129456]
[1726930949552,0.3039291,63329.0,63328.0,0.11129456]
[1726930949795,0.3029291,63329.0,63328.0,0.11129456]
[1726930950006,0.3079291,63329.0,63328.0,0.11129456]
[1726930950479,0.3049291,63329.0,63328.0,0.11129456]
[1726930950726,0.3059291,63329.0,63328.0,0.11129456]
[1726930953086,0.6217401,63329.0,63328.0,0.01259456]
[1726930953321,0.9375511,63329.0,63328.0,0.01259456]
[1726930953563,0.9375511,63329.0,63328.0,0.001652]
[1726930954482,0.9375511,63329.0,63328.0,0.01256467]
[1726930954732,0.9375511,63329.0,63328.0,0.001652]
[1726930957115,0.6217401,63329.0,63328.0,0.001652]
[1726930958184,0.9375511,63329.0,63328.0,0.001652]
[1726930958615,0.576716,63329.0,63328.0,0.001652]
[1726930958836,0.93836154,63329.0,63328.0,0.001652]
[1726930959464,0.62255054,63329.0,63328.0,0.001652]
[1726930960317,0.93836154,63329.0,63328.0,0.001652]
[1726930961425,0.93836154,63329.0,63316.0,0.001652]
[1726930961426,0.63736706,63329.0,63316.0,0.001652]
[1726930961661,0.573805,63317.0,63316.0,0.001652]
[1726930961871,1.45999867,63317.0,63316.0,0.001652]
[1726930962105,1.62332539,63317.0,63316.0,0.001652]
[1726930962563,1.6234283,63317.0,63316.0,0.001652]
[1726930963481,1.50527053,63317.0,63316.0,0.001652]
[1726930963764,1.51327053,63317.0,63316.0,0.002652]
[1726930964000,1.52227053,63317.0,63316.0,0.003652]
[1726930964448,1.61674778,63317.0,63316.0,0.003652]
[1726930965138,1.57147592,63317.0,63316.0,0.003652]
[1726930965379,1.6162297,63317.0,63316.0,0.003652]
[1726930965862,1.73714606,63317.0,63316.0,0.003652]
[1726930966278,1.63088595,63317.0,63316.0,0.003652]
[1726930966485,1.53641795,63317.0,63316.0,0.003652]
[1726930967587,1.60724687,63317.0,63316.0,0.003652]
[1726930967788,1.53641795,63317.0,63316.0,0.003652]
[1726930968418,1.60723605,63317.0,63316.0,0.003652]
[1726930969145,1.63088595,63317.0,63316.0,0.003652]
[1726930969789,1.79397153,63317.0,63316.0,0.003652]
[1726930970428,2.01737353,63317.0,63316.0,0.003652]
[1726930971085,1.85228795,63317.0,63316.0,0.003652]
[1726930971578,1.97044572,63317.0,63316.0,0.003652]
[1726930971780,1.85228795,63317.0,63316.0,0.003652]
[1726930972831,1.76088795,63317.0,63316.0,0.003652]
[1726930974342,1.73334716,63317.0,63316.0,0.003652]
[1726930974554,1.71613417,63317.0,63316.0,0.003652]
[1726930974774,0.274935,63317.0,63316.0,0.003652]
[1726930974998,0.274935,63317.0,63316.0,0.01476288]
[1726930975262,0.274935,63317.0,63316.0,0.003652]
[1726930975480,0.6367699,63317.0,63316.0,0.003652]
[1726930975698,0.82078599,63317.0,63316.0,0.002652]
[1726930975942,0.76682109,63317.0,63316.0,0.002652]
[1726930976151,0.82200661,63317.0,63316.0,0.01476288]
[1726930976589,0.79357688,63317.0,63316.0,0.01476288]
[1726930976801,0.82198615,63317.0,63316.0,0.01476288]
[1726930977012,0.81298615,63317.0,63316.0,0.01376288]
[1726930977469,0.81698615,63317.0,63316.0,0.01376288]
[1726930977973,0.80798615,63317.0,63316.0,0.01276288]
[1726930978673,0.81298615,63317.0,63316.0,0.01276288]
[1726930979862,1.12885615,63317.0,63316.0,0.01276288]
[1726930980101,1.12890649,63317.0,63316.0,0.01276288]
[1726930980822,1.1534811,63317.0,63316.0,0.001652]
[1726930981067,1.12890649,63317.0,63316.0,0.001652]
[1726930981536,1.60783016,63317.0,63316.0,0.001652]
[1726930983304,1.67863229,63317.0,63316.0,0.001652]
[1726930983539,1.64748731,63317.0,63316.0,0.001652]
[1726930983768,1.69379295,63317.0,63316.0,0.001652]
[1726930984058,1.66529717,63317.0,63316.0,0.001652]
[1726930984377,1.69379404,63317.0,63316.0,0.001652]
[1726930984551,1.62299259,63317.0,63316.0,0.001652]
[1726930985046,0.7898,63307.0,63295.0,0.159639]
[1726930985275,1.64630955,63307.0,63302.0,0.23690507]
[1726930985485,1.64630955,63307.0,63295.0,0.00165]
[1726930985486,0.157987,63296.0,63295.0,0.00165]
[1726930985704,0.157987,63296.0,63295.0,0.02718351]
[1726930985705,0.20429441,63296.0,63295.0,0.02718351]
[1726930985924,0.3883105,63296.0,63295.0,0.00165]
[1726930986133,0.7042855,63296.0,63295.0,0.02718351]
[1726930986379,0.3883105,63296.0,63295.0,0.02718351]
[1726930986881,0.7042855,63296.0,63295.0,0.02718351]
[1726930987101,0.3883105,63296.0,63295.0,0.02718351]
[1726930987535,0.7052855,63296.0,63295.0,0.02718351]
[1726930987766,0.3893105,63296.0,63295.0,0.02718351]
[1726930988017,0.3903105,63296.0,63295.0,0.02718351]
[1726930988281,0.7062855,63296.0,63295.0,0.02718351]
[1726930988755,0.3903105,63296.0,63295.0,0.02718351]
[1726930989210,0.41491715,63296.0,63295.0,0.02718351]
[1726930989680,0.73089215,63296.0,63295.0,0.02718351]
[1726930990161,0.34400309,63296.0,63295.0,0.02718351]
[1726930990416,0.36861506,63296.0,63295.0,0.02718351]
[1726930990718,0.4152108,63296.0,63295.0,0.02718351]
[1726930991164,0.7311858,63296.0,63295.0,0.02718351]
[1726930991859,0.2572238,63296.0,63295.0,0.02718351]
[1726930992106,0.4152108,63296.0,63295.0,0.02718351]
[1726930992822,0.43983169,63296.0,63295.0,0.02718351]
[1726930993579,0.51873169,63296.0,63295.0,0.02718351]
[1726930993839,0.44751506,63296.0,63295.0,0.02718351]
[1726930994076,0.51878877,63296.0,63295.0,0.02718351]
[1726930994629,0.157992,63294.0,63293.0,0.001652]
[1726930994877,0.93661481,63294.0,63293.0,0.001652]
[1726930995126,0.93651034,63294.0,63293.0,0.001652]
[1726930995890,0.94851034,63294.0,63293.0,0.002652]
[1726930996097,1.26449534,63294.0,63293.0,0.002652]
[1726930996354,1.25249534,63294.0,63293.0,0.001652]
[1726930996850,1.41554901,63294.0,63293.0,0.001652]
[1726930997589,1.42754901,63294.0,63293.0,0.002652]
[1726930997831,1.43854901,63294.0,63293.0,0.003652]
[1726930998084,1.12256401,63294.0,63293.0,0.003652]
[1726930998329,1.11156401,63294.0,63293.0,0.002652]
[1726930998591,1.12356401,63294.0,63293.0,0.003652]
[1726931000714,1.12333444,63294.0,63293.0,0.003652]
[1726931001406,1.43931944,63294.0,63293.0,0.003652]
[1726931001660,1.12333444,63294.0,63293.0,0.003652]
[1726931001884,1.57945634,63294.0,63293.0,0.003652]
[1726931002359,1.43931944,63294.0,63293.0,0.003652]
[1726931003606,1.53211944,63294.0,63293.0,0.003652]
[1726931004080,1.53296746,63294.0,63293.0,0.003652]
[1726931004346,1.53223397,63294.0,63293.0,0.003652]
[1726931005299,1.57940351,63294.0,63293.0,0.003652]
[1726931005540,1.53223397,63294.0,63293.0,0.003652]
[1726931007582,1.60284306,63294.0,63293.0,0.003652]
[1726931008462,1.60284306,63294.0,63292.0,0.001652]
[1726931008463,0.889975,63293.0,63292.0,0.001652]
[1726931008682,1.50968683,63293.0,63292.0,0.001652]
[1726931008896,1.67277241,63293.0,63292.0,0.001652]
[1726931009123,1.67277241,63293.0,63289.0,0.001652]
[1726931009124,0.002,63290.0,63289.0,0.001652]
[1726931009336,1.04013559,63290.0,63289.0,0.001652]
[1726931009558,1.28535272,63290.0,63289.0,0.001652]
[1726931009846,1.7644433,63290.0,63289.0,0.001652]
[1726931010277,2.19840947,63290.0,63289.0,0.001652]
[1726931010715,2.19840758,63290.0,63289.0,0.001652]
[1726931010940,2.19840758,63290.0,63275.0,0.23690507]
[1726931010941,0.25802,63283.0,63275.0,0.23690507]
[1726931011170,1.32656272,63283.0,63275.0,0.23690507]
[1726931011394,2.00581563,63283.0,63275.0,0.23690507]
[1726931011817,2.00781563,63283.0,63271.0,0.0037588]
[1726931012686,2.00781563,63283.0,63282.0,0.002652]
[1726931012904,1.97669363,63283.0,63282.0,0.002652]
[1726931013121,1.92952072,63283.0,63282.0,0.002652]
[1726931013367,1.97667233,63283.0,63282.0,0.002652]
[1726931013632,1.92952072,63283.0,63282.0,0.002652]
[1726931013860,1.94252072,63283.0,63282.0,0.003652]
[1726931014088,2.0926063,63283.0,63282.0,0.002652]
[1726931014313,2.13974784,63283.0,63282.0,0.002652]
[1726931014534,1.67362226,63283.0,63282.0,0.003652]
[1726931015003,1.68861056,63283.0,63282.0,0.003652]
[1726931015221,1.64146902,63283.0,63282.0,0.003652]
[1726931015696,1.62648072,63283.0,63282.0,0.003652]
[1726931016213,1.31044072,63283.0,63282.0,0.003652]
[1726931016694,1.29744072,63283.0,63282.0,0.002652]
[1726931017194,1.26416976,63283.0,63282.0,0.003652]
[1726931017455,1.26777973,63283.0,63282.0,0.002652]
[1726931017725,1.26777973,63283.0,63271.0,0.0037588]
[1726931017726,0.890237,63272.0,63271.0,0.0037588]
[1726931017969,1.59926881,63272.0,63271.0,0.24066387]
[1726931018220,1.59926881,63272.0,63271.0,0.0037588]
[1726931018941,1.60626881,63272.0,63271.0,0.0037588]
[1726931019412,1.59926881,63272.0,63271.0,0.0037588]
[1726931020101,1.61326881,63272.0,63271.0,0.0037588]
[1726931020338,1.59926881,63272.0,63271.0,0.0037588]
[1726931020798,1.61326881,63272.0,63271.0,0.0037588]
[1726931021022,1.68451461,63272.0,63271.0,0.0037588]
[1726931021496,1.67051461,63272.0,63271.0,0.0037588]
[1726931021737,1.68451461,63272.0,63271.0,0.0037588]
[1726931022188,0.64800905,63272.0,63271.0,0.0037588]
[1726931022732,0.96410405,63272.0,63271.0,0.0037588]
[1726931023441,0.64800905,63272.0,63271.0,0.0037588]
[1726931023660,0.64800905,63272.0,63271.0,0.00379984]
[1726931023661,0.63400905,63272.0,63271.0,0.00379984]
[1726931023903,0.04586705,63272.0,63271.0,0.1618088]
[1726931024157,0.021,63272.0,63271.0,0.1618088]
[1726931024391,0.03149664,63272.0,63271.0,0.1618088]
[1726931024621,0.06449127,63272.0,63271.0,0.00379984]
[1726931024872,0.04549127,63272.0,63271.0,0.00379984]
[1726931025133,0.04549127,63272.0,63271.0,0.16184984]
[1726931025354,0.04649127,63272.0,63271.0,0.00379984]
[1726931025592,0.04749127,63272.0,63271.0,0.00515817]
[1726931026071,0.04749127,63272.0,63271.0,0.0037588]
[1726931026307,0.04749127,63272.0,63271.0,0.00515817]
[1726931026568,0.52178731,63272.0,63271.0,0.00515817]
[1726931026836,0.28627265,63272.0,63271.0,0.0037588]
[1726931027068,0.20569231,63272.0,63271.0,0.00515817]
[1726931027572,0.20679512,63272.0,63271.0,0.00515817]
[1726931027818,0.20579512,63272.0,63271.0,0.00515817]
[1726931028047,0.2057225,63272.0,63271.0,0.00515817]
[1726931028283,0.2067225,63272.0,63271.0,0.00515817]
[1726931028494,0.2047225,63272.0,63271.0,0.00515817]
[1726931028989,0.0486755,63272.0,63271.0,0.00515817]
[1726931029479,0.2067225,63272.0,63271.0,0.00515817]
[1726931030127,0.2067225,63272.0,63271.0,0.00598417]
[1726931034908,0.20681343,63272.0,63271.0,0.00598417]
[1726931035346,0.52290843,63272.0,63271.0,0.00598417]
[1726931035614,0.83900343,63272.0,63271.0,0.00598417]
[1726931035839,0.52290843,63272.0,63271.0,0.0045848]
[1726931036056,0.52293505,63272.0,63271.0,0.00602707]
[1726931036704,0.477142,63272.0,63271.0,0.0045848]
[1726931037136,0.68486501,63272.0,63271.0,0.0045848]
[1726931037349,0.893237,63272.0,63271.0,0.0045848]
[1726931038219,0.93907544,63272.0,63271.0,0.0045848]
[1726931039797,0.93931126,63272.0,63271.0,0.0045848]
[1726931041374,0.30712126,63272.0,63271.0,0.0045848]
[1726931041598,0.62321626,63272.0,63271.0,0.0045848]
[1726931042756,0.04907426,63272.0,63271.0,0.5698348]
[1726931042990,0.04907426,63272.0,63271.0,0.88783337]
[1726931043475,0.04907426,63272.0,63271.0,0.57173337]
[1726931043476,0.04707426,63272.0,63271.0,0.57173337]
[1726931043695,0.04607426,63272.0,63271.0,0.57173337]
[1726931044366,0.04607426,63272.0,63271.0,0.00648337]
[1726931044367,0.04707426,63272.0,63271.0,0.00648337]
[1726931044832,0.04707426,63272.0,63271.0,0.16453337]
[1726931045042,0.04707426,63272.0,63271.0,0.48063337]
[1726931046412,0.001,63272.0,63271.0,0.48063337]
[1726931046665,0.04541382,63272.0,63271.0,0.48063337]
[1726931046885,0.04541382,63272.0,63271.0,0.16453337]
[1726931047772,0.04544929,63272.0,63271.0,0.16453337]
[1726931048208,0.01809588,63272.0,63271.0,0.16453337]
[1726931049563,0.01809588,63272.0,63271.0,0.48063337]
[1726931049788,0.01809588,63272.0,63271.0,0.16453337]
[1726931051573,0.01809588,63272.0,63271.0,0.00648337]
[1726931052807,0.01809588,63272.0,63271.0,0.16453337]
[1726931053075,0.01809588,63272.0,63271.0,0.00648337]
[1726931053305,0.77612802,63272.0,63271.0,0.00648337]
[1726931053744,0.46003302,63272.0,63271.0,0.0045848]
[1726931053969,0.8234704,63272.0,63271.0,0.0045848]
[1726931055998,0.5073754,63272.0,63271.0,0.0045848]
[1726931056716,0.49040547,63272.0,63271.0,0.00647646]
[1726931056986,0.50737576,63272.0,63271.0,0.00647646]
[1726931058822,1.09222338,63272.0,63271.0,0.00647646]
[1726931059061,1.18690815,63272.0,63271.0,0.00647646]
[1726931059299,1.09222338,63272.0,63271.0,0.0045848]
[1726931059560,0.87089132,63272.0,63271.0,0.0045848]
[1726931059805,0.77612838,63272.0,63271.0,0.0045848]
[1726931060070,0.75915809,63272.0,63271.0,0.0045848]
[1726931060308,0.87084709,63272.0,63271.0,0.0045848]
[1726931060532,0.84715704,63272.0,63271.0,0.0045848]
[1726931060763,0.77608415,63272.0,63271.0,0.0045848]
[1726931061883,0.87084709,63272.0,63271.0,0.0045848]
[1726931062143,0.84715763,63272.0,63271.0,0.0045848]
[1726931062366,0.77608415,63272.0,63271.0,0.0045848]
[1726931063054,0.84715779,63272.0,63271.0,0.0045848]
[1726931063287,0.83023173,63272.0,63271.0,0.0045848]
[1726931063512,0.85392103,63272.0,63271.0,0.0045848]
[1726931063733,0.87088401,63272.0,63271.0,0.0045848]
[1726931063973,0.77612107,63272.0,63271.0,0.0045848]
[1726931064196,1.09221607,63272.0,63271.0,0.0045848]
[1726931064864,1.18699449,63272.0,63271.0,0.0045848]
[1726931065087,0.87089949,63272.0,63271.0,0.0045848]
[1726931065543,0.84720256,63272.0,63271.0,0.0045848]
[1726931066431,1.09221607,63272.0,63271.0,0.0045848]
[1726931067080,0.77612107,63272.0,63271.0,0.0045848]
[1726931067518,1.18699449,63272.0,63271.0,0.0045848]
[1726931067775,0.87089949,63272.0,63271.0,0.0045848]
[1726931068438,0.39675749,63272.0,63271.0,0.0045848]
[1726931068656,0.27600998,63272.0,63271.0,0.0045848]
[1726931068877,0.59210498,63272.0,63271.0,0.0050582]
[1726931069139,0.11796298,63272.0,63271.0,0.4792082]
[1726931069374,0.01796298,63272.0,63271.0,0.0050582]
[1726931069833,0.06537479,63272.0,63271.0,0.0050582]
[1726931070072,0.06531108,63272.0,63271.0,0.0050582]
[1726931070294,0.01789927,63272.0,63271.0,0.0050582]
[1726931070750,0.06531108,63272.0,63271.0,0.0050582]
[1726931070988,0.06531108,63272.0,63271.0,0.0045848]
[1726931071720,0.01789927,63272.0,63271.0,0.0045848]
[1726931072578,0.06531125,63272.0,63271.0,0.0045848]
[1726931072792,0.06531137,63272.0,63271.0,0.0045848]
[1726931073457,0.06536371,63272.0,63271.0,0.0045848]
[1726931074350,0.06536301,63272.0,63271.0,0.0045848]
[1726931074572,0.01795161,63272.0,63271.0,0.0045848]
[1726931074801,0.22340991,63272.0,63271.0,0.0045848]
[1726931075276,0.17599861,63272.0,63271.0,0.0045848]
[1726931075497,0.22340991,63272.0,63271.0,0.0045848]
[1726931076174,0.24711572,63272.0,63271.0,0.0045848]
[1726931076372,0.22340983,63272.0,63271.0,0.0045848]
[1726931076830,0.24711572,63272.0,63271.0,0.0045848]
[1726931077053,0.17599861,63272.0,63271.0,0.0045848]
[1726931077290,0.22340899,63272.0,63271.0,0.0045848]
[1726931078689,0.17599861,63272.0,63271.0,0.0045848]
[1726931078934,0.22340712,63272.0,63271.0,0.0045848]
[1726931079315,0.22340741,63272.0,63271.0,0.0045848]
[1726931080182,0.53950241,63272.0,63271.0,0.0045848]
[1726931080415,0.49209361,63272.0,63271.0,0.0045848]
[1726931080846,0.56320681,63272.0,63271.0,0.0045848]
[1726931081056,0.24711181,63272.0,63271.0,0.0045848]
[1726931081758,0.17599861,63272.0,63271.0,0.0045848]
[1726931082000,0.24711181,63272.0,63271.0,0.0045848]
[1726931085487,0.27438292,63272.0,63271.0,0.0045848]
[1726931085710,0.25068217,63272.0,63271.0,0.0045848]
[1726931086161,0.04522272,63272.0,63271.0,0.0045848]
[1726931086393,0.09263564,63272.0,63271.0,0.0045848]
[1726931086682,0.09263619,63272.0,63271.0,0.0045848]
[1726931087001,0.09276227,63272.0,63271.0,0.0045848]
[1726931087493,0.09276227,63272.0,63271.0,0.01910806]
[1726931087494,0.01805723,63272.0,63271.0,0.01910806]
[1726931087714,0.01805723,63272.0,63271.0,0.0045848]
[1726931087941,0.17610423,63272.0,63271.0,0.0045848]
[1726931088179,0.22351815,63272.0,63271.0,0.01910806]
[1726931088414,0.17610423,63272.0,63271.0,0.0045848]
[1726931088868,0.22351898,63272.0,63271.0,0.0045848]
[1726931089089,0.25078229,63272.0,63271.0,0.0045848]
[1726931089307,0.25078304,63272.0,63271.0,0.0045848]
[1726931089763,0.11644379,63272.0,63271.0,0.0045848]
[1726931089980,0.09273726,63272.0,63271.0,0.01910806]
[1726931090199,0.09273726,63272.0,63271.0,0.0045848]
[1726931090419,0.09273726,63272.0,63271.0,0.01910806]
[1726931090665,0.11644379,63272.0,63271.0,0.0045848]
[1726931090886,0.11644379,63272.0,63271.0,0.01910806]
[1726931090887,0.25078429,63272.0,63271.0,0.01910806]
[1726931091138,0.25078429,63272.0,63271.0,0.0045848]
[1726931091381,0.04532054,63272.0,63271.0,0.0045848]
[1726931091609,0.09273776,63272.0,63271.0,0.0045848]
[1726931091831,0.04532054,63272.0,63271.0,0.01910806]
[1726931092064,0.04532054,63272.0,63271.0,0.0045848]
[1726931092324,0.11644379,63272.0,63271.0,0.01910806]
[1726931092539,0.07212325,63272.0,63271.0,0.0045848]
[1726931092738,0.11663544,63272.0,63271.0,0.01910806]
[1726931093467,0.11663346,63272.0,63271.0,0.01910806]
[1726931093690,0.04551021,63272.0,63271.0,0.01910806]
[1726931093927,0.09292895,63272.0,63271.0,0.01910806]
[1726931094398,0.09292812,63272.0,63271.0,0.17715806]
[1726931094628,0.09292812,63272.0,63271.0,0.01910806]
[1726931094887,0.09292812,63272.0,63271.0,0.49325806]
[1726931095133,0.09292812,63272.0,63271.0,0.17715806]
[1726931095648,0.09292812,63272.0,63271.0,1.52976704]
[1726931095649,0.01811931,63272.0,63271.0,1.52976704]
[1726931095871,0.01811931,63272.0,63271.0,1.60580103]
[1726931096095,0.01811931,63272.0,63271.0,1.92247235]
[1726931097302,0.01811931,63272.0,63271.0,1.92547235]
[1726931097523,0.01711931,63272.0,63271.0,1.92247235]
[1726931097742,0.01711931,63272.0,63271.0,1.92647235]
[1726931097743,0.01811931,63272.0,63271.0,1.92647235]
[1726931097986,0.01911931,63272.0,63271.0,1.92947235]
[1726931098209,0.01911931,63272.0,63271.0,1.92547235]
[1726931098210,0.001,63272.0,63271.0,1.92547235]
[1726931098659,0.002,63272.0,63271.0,1.92947235]
[1726931099107,0.001,63272.0,63271.0,1.92547235]
[1726931099336,0.001652,63282.0,63281.0,0.474075]
[1726931099832,0.001652,63282.0,63281.0,0.48987582]
[1726931100501,0.001652,63282.0,63281.0,0.80592582]
[1726931100701,0.002652,63282.0,63281.0,0.49287582]
[1726931100976,0.03103572,63282.0,63281.0,0.49687582]
[1726931101199,0.02076683,63282.0,63281.0,0.49687582]
[1726931101629,0.01976683,63282.0,63281.0,0.49287582]
[1726931101860,0.01976683,63282.0,63281.0,0.49387582]
[1726931102193,0.01976683,63282.0,63281.0,0.17782582]
[1726931102337,0.01876683,63282.0,63281.0,0.17382582]
[1726931102808,0.01876683,63282.0,63281.0,0.17482582]
[1726931103092,0.01876683,63282.0,63281.0,0.48987582]
[1726931103581,0.01876683,63282.0,63281.0,0.01580082]
[1726931103804,0.01876683,63282.0,63281.0,0.17682582]
[1726931104027,0.01876683,63282.0,63281.0,0.01980082]
[1726931104268,0.01876683,63282.0,63281.0,0.01580082]
[1726931104269,0.49283383,63282.0,63281.0,0.01580082]
[1726931104719,0.49283383,63282.0,63281.0,0.01780082]
[1726931104942,0.49283383,63282.0,63281.0,0.002]
[1726931104943,0.54016992,63282.0,63281.0,0.002]
[1726931105165,0.158028,63280.0,63276.0,0.158036]
[1726931105608,0.01711483,63279.0,63276.0,0.158036]
[1726931105874,0.01711483,63279.0,63274.0,0.23690507]
[1726931105875,0.01711483,63278.0,63277.0,0.158035]
[1726931106784,0.01711483,63278.0,63274.0,0.316083]
[1726931107001,0.01711483,63277.0,63276.0,0.158036]
[1726931107250,0.01711483,63277.0,63276.0,0.474111]
[1726931108364,0.01711483,63277.0,63276.0,0.17335365]
[1726931108886,0.01711483,63277.0,63276.0,0.17535365]
[1726931109121,0.01711483,63277.0,63276.0,0.17735365]
[1726931109851,0.01711483,63277.0,63276.0,0.01931765]
[1726931110961,0.01711483,63277.0,63276.0,0.01731765]
[1726931111165,0.01711483,63277.0,63276.0,0.01831765]
[1726931111625,0.01694437,63277.0,63276.0,0.01831765]
[1726931111848,0.01694437,63277.0,63276.0,0.01631765]
[1726931112072,0.01694437,63277.0,63276.0,0.01714365]
[1726931112336,0.01694437,63277.0,63276.0,0.01814365]
[1726931112724,0.17497937,63277.0,63276.0,0.01814365]
[1726931112969,0.17497937,63277.0,63276.0,0.01714365]
[1726931113183,0.17497937,63277.0,63276.0,0.01760075]
[1726931113367,0.17597937,63277.0,63276.0,0.01660075]
[1726931113633,0.17697937,63277.0,63276.0,0.01660075]
[1726931114071,0.02194437,63277.0,63276.0,0.01660075]
[1726931114534,0.02194437,63277.0,63276.0,0.000826]
[1726931114757,0.01994437,63277.0,63276.0,0.000826]
[1726931114977,0.02391695,63277.0,63276.0,0.000826]
[1726931115419,0.02091695,63277.0,63276.0,0.000826]
[1726931115656,0.02291695,63277.0,63276.0,0.000826]
[1726931116339,0.17695195,63277.0,63276.0,0.000826]
[1726931116768,0.17995195,63277.0,63276.0,0.000826]
[1726931117227,0.02191695,63277.0,63276.0,0.000826]
[1726931117720,0.49602195,63277.0,63276.0,0.000826]
[1726931117931,0.17995195,63277.0,63276.0,0.000826]
[1726931118375,0.17997559,63277.0,63276.0,0.0166177]
[1726931118587,0.49604559,63277.0,63276.0,0.00130005]
[1726931119072,0.61703489,63277.0,63276.0,0.00130005]
[1726931119310,0.66438196,63277.0,63276.0,0.00130005]
[1726931119537,0.61703489,63277.0,63276.0,0.000826]
[1726931120209,0.49604559,63277.0,63276.0,0.000826]
[1726931120635,0.54339658,63277.0,63276.0,0.000826]
[1726931120863,0.49604559,63277.0,63276.0,0.000826]
[1726931121088,1.86209348,63277.0,63276.0,0.000826]
[1726931121353,1.16686926,63277.0,63276.0,0.000826]
[1726931121809,1.28785856,63277.0,63276.0,0.000826]
[1726931122046,1.28485856,63277.0,63276.0,0.000826]
[1726931122262,1.60592856,63277.0,63276.0,0.000826]
[1726931122445,1.28985856,63277.0,63276.0,0.000826]
[1726931122702,1.60592856,63277.0,63276.0,0.000826]
[1726931122925,1.28985856,63277.0,63276.0,0.000826]
[1726931123040,1.28485856,63277.0,63276.0,0.000826]
[1726931123675,1.29685856,63277.0,63276.0,0.000826]
[1726931123886,1.30185856,63277.0,63276.0,0.000826]
[1726931124326,1.29685856,63277.0,63276.0,0.000826]
[1726931124760,1.30685856,63277.0,63276.0,0.000826]
[1726931125256,1.28485856,63277.0,63276.0,0.000826]
[1726931125491,1.62192856,63277.0,63276.0,0.000826]
[1726931125708,1.61192856,63277.0,63276.0,0.000826]
[1726931126131,1.62292856,63277.0,63276.0,0.000826]
[1726931126965,1.60092856,63277.0,63276.0,0.000826]
[1726931127187,1.62092856,63277.0,63276.0,0.000826]
[1726931129619,1.0112263,63272.0,63271.0,0.00252223]
[1726931129840,0.158058,63268.0,63265.0,0.23653873]
[1726931130060,0.01694059,63267.0,63265.0,0.23653873]
[1726931130284,0.158058,63268.0,63266.0,0.01590536]
[1726931130499,0.01694026,63267.0,63264.0,0.159719]
[1726931130631,0.01694026,63266.0,63264.0,0.159719]
[1726931130838,0.158058,63268.0,63264.0,0.159719]
[1726931130839,0.01694026,63265.0,63264.0,0.159719]
[1726931131054,0.01694026,63265.0,63264.0,0.15683043]
[1726931131469,0.0168922,63265.0,63264.0,0.15683043]
[1726931131700,0.316137,63264.0,63253.0,0.023]
[1726931131919,0.1086922,63265.0,63261.0,0.158073]
[1726931131920,0.0168922,63263.0,63261.0,0.158073]